fUST/lending_fUST_20251006
["ID","MTS","AMOUNT","RATE_DAILY","PERIOD"]
[389511147,1759689057102,-2194.45,0.00017534,2]
[389511148,1759689057112,-1267.61,0.00017534,2]
[389511149,1759689057121,-500.0,0.00017534,2]
[389511150,1759689057131,-2062.38,0.00017534,2]
[389511151,1759689057140,-500.0,0.00017534,2]
[389511152,1759689057150,-324.88460938,0.00017534,2]
[389511153,1759689057159,-500.0,0.00017534,2]
[389511154,1759689057168,-562.16,0.00017534,2]
[389511155,1759689057177,-4433.26,0.00017534,2]
[389511156,1759689057186,-3569.42,0.00017534,2]
[389511157,1759689057196,-1305.26,0.00017534,2]
[389511158,1759689057205,-4629.9,0.00017534,2]
[389511159,1759689057214,-550.36,0.00017534,2]
[389511160,1759689057224,-1068.91,0.00017534,2]
[389511161,1759689057233,-500.0,0.00017534,2]
[389511162,1759689057243,-634.62,0.00017534,2]
[389511163,1759689057252,-500.0,0.00017534,2]
[389511164,1759689057262,-1079.72,0.00017534,2]
[389511165,1759689057271,-1008.94,0.00017534,2]
[389511166,1759689057280,-740.14,0.00017534,2]
[389511167,1759689057290,-717.46,0.00017534,2]
[389511168,1759689057298,-1365.79,0.00017534,2]
[389511169,1759689057307,-3616.59,0.00017534,2]
[389511170,1759689057316,-848.78,0.00017534,2]
[389511171,1759689057326,-500.0,0.00017534,2]
[389511172,1759689057335,-3922.43,0.00017534,2]
[389511173,1759689057344,-2838.25,0.00017534,2]
[389511174,1759689057354,-923.11,0.00017534,2]
[389511175,1759689057364,-500.0,0.00017534,2]
[389511176,1759689057373,-2055.86,0.00017534,2]
[389511177,1759689057382,-500.0,0.00017534,2]
[389511178,1759689057391,-161.21567667,0.00017534,2]
[389511179,1759689057400,-609.62,0.00017534,2]
[389511180,1759689057409,-1609.34,0.00017534,2]
[389511181,1759689057419,-216.209416,0.00017534,2]
[389511182,1759689057428,-1684.32,0.00017534,2]
[389511183,1759689057438,-500.0,0.00017534,2]
[389511184,1759689057448,-1707.15,0.00017534,2]
[389511185,1759689057457,-500.0,0.00017534,2]
[389511186,1759689057467,-983.2,0.00017534,2]
[389511187,1759689057475,-2659.2,0.00017534,2]
[389511188,1759689057485,-621.66,0.00017534,2]
[389511189,1759689057494,-639.69,0.00017534,2]
[389511190,1759689057503,-500.0,0.00017534,2]
[389511191,1759689057512,-4527.15,0.00017534,2]
[389511192,1759689057521,-553.27703503,0.00017534,2]
[389511193,1759689057530,-762.6,0.00017534,2]
[389511194,1759689057539,-500.0,0.00017534,2]
[389511195,1759689057547,-500.0,0.00017534,2]
[389511196,1759689057556,-675.38,0.00017534,2]
[389511197,1759689057565,-500.0,0.00017534,2]
[389511198,1759689057574,-1616.68,0.00017534,2]
[389511199,1759689057583,-500.0,0.00017534,2]
[389511200,1759689057591,-500.0,0.00017534,2]
[389511201,1759689057601,-2024.41,0.00017534,2]
[389511202,1759689057610,-500.0,0.00017534,2]
[389511203,1759689057620,-523.76,0.00017534,2]
[389511204,1759689057629,-500.0,0.00017534,2]
[389511205,1759689057638,-721.64,0.00017534,2]
[389511206,1759689057647,-500.0,0.00017534,2]
[389511207,1759689057657,-511.05,0.00017534,2]
[389511208,1759689057666,-891.94,0.00017534,2]
[389511209,1759689057674,-1736.69,0.00017534,2]
[389511210,1759689057683,-151.0,0.00017534,2]
[389511211,1759689057692,-500.0,0.00017534,2]
[389511212,1759689057701,-257.527292,0.00017534,2]
[389511213,1759689057710,-500.0,0.00017534,2]
[389511214,1759689057718,-681.25,0.00017534,2]
[389511215,1759689057727,-772.36,0.00017534,2]
[389511216,1759689057735,-2634.38,0.00017534,2]
[389511217,1759689057744,-6557.05,0.00017534,2]
[389511218,1759689057753,-1112.79,0.00017534,2]
[389511219,1759689057762,-2126.8,0.00017534,2]
[389511220,1759689057771,-500.0,0.00017534,2]
[389511221,1759689057780,-500.0,0.00017534,2]
[389511222,1759689057789,-2286.45,0.00017534,2]
[389511223,1759689057798,-2130.5,0.00017534,2]
[389511224,1759689057807,-802.42,0.00017534,2]
[389511225,1759689057816,-6687.93,0.00017534,2]
[389511226,1759689057825,-1079.59,0.00017534,2]
[389511227,1759689057834,-500.0,0.00017534,2]
[389511228,1759689057845,-424.79919537,0.00017534,2]
[389511229,1759689057854,-2109.13272147,0.000176,2]
[389511230,1759689057865,-372.0,0.00017627,2]
[389511231,1759689057875,-500.0,0.00017676,2]
[389511232,1759689057884,-500.0,0.00017676,2]
[389511233,1759689057893,-500.0,0.00017676,2]
[389511234,1759689057903,-500.0,0.00017676,2]
[389511235,1759689057912,-500.0,0.00017676,2]
[389511236,1759689057922,-500.0,0.00017676,2]
[389511237,1759689057932,-500.0,0.00017676,2]
[389511238,1759689057941,-12357.06857415,0.00017708,2]
[389511239,1759689057950,-821.70402823,0.00017708,2]
[389511240,1759689057959,-1000.0,0.0001773,2]
[389511241,1759689057968,-1000.0,0.0001773,2]
[389511242,1759689057977,-1000.0,0.0001773,2]
[389511243,1759689057991,-843.61405455,0.0001773,2]
[389511244,1759689058000,-1000.0,0.0001773,2]
[389511245,1759689058011,-1000.0,0.0001773,2]
[389511246,1759689058020,-1000.0,0.0001773,2]
[389511247,1759689058029,-1000.0,0.0001773,2]
[389511248,1759689058039,-2921.8,0.00017798,3]
[389511249,1759689058049,-1460.9,0.00017798,3]
[389511250,1759689058060,-730.46,0.00017798,3]
[389511251,1759689058070,-365.22,0.00017798,3]
[389511252,1759689058079,-500.0,0.00017808,2]
[389511253,1759689058089,-500.0,0.00017808,2]
[389511254,1759689058099,-162.50044166,0.00017808,2]
[389511255,1759689058108,-589.01722752,0.00017808,2]
[389511256,1759689058121,-500.0,0.00017808,2]
[389511257,1759689058130,-500.0,0.00017808,2]
[389511258,1759689058140,-500.0,0.00017808,2]
[389511259,1759689058149,-1732.0,0.00017808,2]
[389511260,1759689058160,-500.0,0.00017808,2]
[389511261,1759689058169,-500.0,0.00017808,2]
[389511262,1759689058179,-500.0,0.00017808,2]
[389511263,1759689058188,-1293.03,0.00017808,2]
[389511264,1759689058198,-500.0,0.00017808,2]
[389511265,1759689058208,-500.0,0.00017808,2]
[389511266,1759689058217,-500.0,0.00017808,2]
[389511267,1759689058226,-500.0,0.00017808,2]
[389511268,1759689058235,-271.36777272,0.00017808,2]
[389511269,1759689058245,-500.0,0.00017808,2]
[389511270,1759689058254,-500.0,0.00017808,2]
[389511271,1759689058263,-500.0,0.00017808,2]
[389511272,1759689058272,-500.0,0.00017808,2]
[389511273,1759689058282,-555.18,0.00017808,2]
[389511274,1759689058292,-499.82236058,0.00017808,2]
[389511275,1759689058301,-504.64714111,0.00017808,2]
[389511276,1759689058310,-500.0,0.00017808,2]
[389511277,1759689058319,-500.0,0.00017808,2]
[389511278,1759689058328,-500.0,0.00017808,2]
[389511279,1759689058338,-500.0,0.00017808,2]
[389511280,1759689058348,-500.0,0.00017808,2]
[389511281,1759689058362,-500.0,0.00017808,2]
[389511282,1759689058371,-595.33,0.00017808,2]
[389511283,1759689058380,-500.0,0.00017808,2]
[389511284,1759689058390,-500.0,0.00017808,2]
[389511285,1759689058399,-1376.15,0.00017808,2]
[389511286,1759689058409,-642.37,0.00017808,2]
[389511287,1759689058418,-956.68,0.00017808,2]
[389511288,1759689058429,-500.0,0.00017808,2]
[389511289,1759689058438,-502.35218277,0.00017808,2]
[389511290,1759689058447,-500.0,0.00017808,2]
[389511291,1759689058456,-568.39,0.00017808,2]
[389511292,1759689058465,-500.0,0.00017808,2]
[389511293,1759689058474,-500.0,0.00017808,2]
[389511294,1759689058483,-698.89,0.00017808,2]
[389511295,1759689058492,-500.0,0.00017808,2]
[389511296,1759689058501,-151.0,0.00017808,2]
[389511297,1759689058510,-500.0,0.00017808,2]
[389511298,1759689058519,-500.0,0.00017808,2]
[389511299,1759689058528,-2265.52,0.00017808,2]
[389511300,1759689058537,-643.01,0.00017808,2]
[389511301,1759689058546,-500.0,0.00017808,2]
[389511302,1759689058555,-470.33937899,0.00017808,2]
[389511303,1759689058563,-500.0,0.00017808,2]
[389511304,1759689058572,-500.0,0.00017808,2]
[389511305,1759689058581,-500.0,0.00017808,2]
[389511306,1759689058590,-1393.99,0.00017808,2]
[389511307,1759689058599,-500.05,0.00017808,2]
[389511308,1759689058609,-1317.15,0.00017808,2]
[389511309,1759689058619,-500.0,0.00017808,2]
[389511310,1759689058628,-763.35,0.00017808,2]
[389511311,1759689058637,-500.0,0.00017808,2]
[389511312,1759689058648,-500.0,0.00017808,2]
[389511313,1759689058657,-151.0,0.00017808,2]
[389511314,1759689058667,-179.405922,0.00017808,2]
[389511315,1759689058677,-546.92,0.00017808,2]
[389511316,1759689058686,-500.0,0.00017808,2]
[389511317,1759689058695,-675.29,0.00017808,2]
[389511318,1759689058705,-500.0,0.00017808,2]
[389511319,1759689058715,-151.0,0.00017808,2]
[389511320,1759689058725,-852.17,0.00017808,2]
[389511321,1759689058734,-500.0,0.00017808,2]
[389511322,1759689058743,-2432.63,0.00017808,2]
[389511323,1759689058752,-809.72,0.00017808,2]
[389511324,1759689058761,-1268.73,0.00017808,2]
[389511325,1759689058771,-826.51,0.00017808,2]
[389511326,1759689058780,-824.29,0.00017808,2]
[389511327,1759689058788,-974.64,0.00017808,2]
[389511328,1759689058799,-983.67,0.00017808,2]
[389511329,1759689058807,-500.0,0.00017808,2]
[389511330,1759689058816,-500.0,0.00017808,2]
[389511331,1759689058825,-533.34,0.00017808,2]
[389511332,1759689058834,-500.0,0.00017808,2]
[389511333,1759689058843,-709.8,0.00017808,2]
[389511334,1759689058853,-343.15911965,0.00017808,2]
[389511335,1759689058862,-166.317112,0.00017808,2]
[389511336,1759689058871,-1377.69,0.00017808,2]
[389511337,1759689058881,-500.0,0.00017808,2]
[389511338,1759689058891,-500.0,0.00017808,2]
[389511339,1759689058900,-165.912295,0.00017808,2]
[389511340,1759689058909,-500.0,0.00017808,2]
[389511341,1759689058919,-151.0,0.00017808,2]
[389511342,1759689058928,-500.0,0.00017808,2]
[389511343,1759689058937,-500.0,0.00017808,2]
[389511344,1759689058946,-500.0,0.00017808,2]
[389511345,1759689058955,-500.0,0.00017808,2]
[389511346,1759689058964,-500.0,0.00017808,2]
[389511347,1759689058974,-500.0,0.00017808,2]
[389511348,1759689058983,-500.0,0.00017808,2]
[389511349,1759689058992,-581.49,0.00017808,2]
[389511350,1759689059001,-542.65,0.00017808,2]
[389511351,1759689059010,-151.0,0.00017808,2]
[389511352,1759689059019,-500.0,0.00017808,2]
[389511353,1759689059028,-151.0,0.00017808,2]
[389511354,1759689059040,-2208.57,0.00017808,2]
[389511355,1759689059055,-500.0,0.00017808,2]
[389511356,1759689059064,-500.0,0.00017808,2]
[389511357,1759689059073,-543.1,0.00017808,2]
[389511358,1759689059082,-500.0,0.00017808,2]
[389511359,1759689059091,-151.0,0.00017808,2]
[389511360,1759689059100,-500.0,0.00017808,2]
[389511361,1759689059109,-500.0,0.00017808,2]
[389511362,1759689059119,-832.87,0.00017808,2]
[389511363,1759689059128,-1123.52,0.00017808,2]
[389511364,1759689059137,-585.0,0.00017808,2]
[389511365,1759689059147,-778.06,0.00017808,2]
[389511366,1759689059156,-151.0,0.00017808,2]
[389511367,1759689059166,-500.0,0.00017808,2]
[389511368,1759689059176,-500.0,0.00017808,2]
[389511369,1759689059185,-539.79,0.00017808,2]
[389511370,1759689059195,-198.672224,0.00017808,2]
[389511371,1759689059205,-585.63,0.00017808,2]
[389511372,1759689059214,-265.810979,0.00017808,2]
[389511373,1759689059223,-695.12,0.00017808,2]
[389511374,1759689059233,-879.04,0.00017808,2]
[389511375,1759689059242,-151.0,0.00017808,2]
[389511376,1759689059251,-944.64,0.00017808,2]
[389511377,1759689059260,-1951.78,0.00017808,2]
[389511378,1759689059269,-500.0,0.00017808,2]
[389511379,1759689059278,-500.0,0.00017808,2]
[389511380,1759689059287,-1643.6,0.00017808,2]
[389511381,1759689059296,-500.0,0.00017808,2]
[389511382,1759689059306,-500.0,0.00017808,2]
[389511383,1759689059315,-500.0,0.00017808,2]
[389511384,1759689059324,-500.0,0.00017808,2]
[389511385,1759689059333,-500.0,0.00017808,2]
[389511386,1759689059344,-500.0,0.00017808,2]
[389511387,1759689059353,-1072.17,0.00017808,2]
[389511388,1759689059364,-500.0,0.00017808,2]
[389511389,1759689059373,-710.73,0.00017808,2]
[389511390,1759689059383,-539.36,0.00017808,2]
[389511391,1759689059392,-525.38,0.00017808,2]
[389511392,1759689059402,-1398.76,0.00017808,2]
[389511393,1759689059412,-1035.99,0.00017808,2]
[389511394,1759689059422,-500.0,0.00017808,2]
[389511395,1759689059432,-500.0,0.00017808,2]
[389511396,1759689059442,-3042.18,0.00017808,2]
[389511397,1759689059451,-2002.11,0.00017808,2]
[389511398,1759689059462,-500.0,0.00017808,2]
[389511399,1759689059472,-3386.7,0.00017808,2]
[389511400,1759689059481,-500.0,0.00017808,2]
[389511401,1759689059490,-2103.1,0.00017808,2]
[389511402,1759689059499,-4820.21,0.00017808,2]
[389511403,1759689059509,-322.61712611,0.00017808,2]
[389511404,1759689059518,-6284.43,0.00017808,2]
[389511405,1759689059527,-973.67,0.00017808,2]
[389511406,1759689059537,-729.48,0.00017808,2]
[389511407,1759689059546,-500.0,0.00017808,2]
[389511408,1759689059555,-1292.33,0.00017808,2]
[389511409,1759689059565,-1212.35,0.00017808,2]
[389511410,1759689059573,-151.0,0.00017808,2]
[389511411,1759689059583,-500.0,0.00017808,2]
[389511412,1759689059591,-536.91,0.00017808,2]
[389511413,1759689059601,-631.87,0.00017808,2]
[389511414,1759689059611,-500.0,0.00017808,2]
[389511415,1759689059620,-580.24,0.00017808,2]
[389511416,1759689059630,-635.4,0.00017808,2]
[389511417,1759689059639,-500.0,0.00017808,2]
[389511418,1759689059648,-1306.97,0.00017808,2]
[389511419,1759689059658,-3083.19,0.00017808,2]
[389511420,1759689059668,-500.0,0.00017808,2]
[389511421,1759689059678,-1026.88,0.00017808,2]
[389511422,1759689059688,-500.0,0.00017808,2]
[389511423,1759689059698,-2194.45,0.00017808,2]
[389511424,1759689059708,-1267.61,0.00017808,2]
[389511425,1759689059718,-500.0,0.00017808,2]
[389511426,1759689059727,-2062.38,0.00017808,2]
[389511427,1759689059737,-500.0,0.00017808,2]
[389511428,1759689059746,-500.0,0.00017808,2]
[389511429,1759689059755,-562.16,0.00017808,2]
[389511430,1759689059765,-4433.26,0.00017808,2]
[389511431,1759689059774,-3569.42,0.00017808,2]
[389511432,1759689059783,-1305.26,0.00017808,2]
[389511433,1759689059793,-4629.9,0.00017808,2]
[389511434,1759689059803,-550.36,0.00017808,2]
[389511435,1759689059812,-1068.91,0.00017808,2]
[389511436,1759689059821,-634.62,0.00017808,2]
[389511437,1759689059831,-500.0,0.00017808,2]
[389511438,1759689059841,-500.0,0.00017808,2]
[389511439,1759689059850,-1079.72,0.00017808,2]
[389511440,1759689059859,-1008.94,0.00017808,2]
[389511441,1759689059869,-740.14,0.00017808,2]
[389511442,1759689059878,-717.46,0.00017808,2]
[389511443,1759689059887,-1365.79,0.00017808,2]
[389511444,1759689059898,-3616.59,0.00017808,2]
[389511445,1759689059907,-848.78,0.00017808,2]
[389511446,1759689059917,-500.0,0.00017808,2]
[389511447,1759689059927,-3922.43,0.00017808,2]
[389511448,1759689059936,-2838.25,0.00017808,2]
[389511449,1759689059945,-923.11,0.00017808,2]
[389511450,1759689059955,-2055.86,0.00017808,2]
[389511451,1759689059966,-500.0,0.00017808,2]
[389511452,1759689059976,-500.0,0.00017808,2]
[389511453,1759689059985,-609.62,0.00017808,2]
[389511454,1759689059996,-1609.34,0.00017808,2]
[389511455,1759689060005,-1684.32,0.00017808,2]
[389511456,1759689060016,-500.0,0.00017808,2]
[389511457,1759689060026,-1707.15,0.00017808,2]
[389511458,1759689060035,-500.0,0.00017808,2]
[389511459,1759689060044,-983.2,0.00017808,2]
[389511460,1759689060054,-2659.2,0.00017808,2]
[389511461,1759689060063,-621.66,0.00017808,2]
[389511462,1759689060073,-639.69,0.00017808,2]
[389511463,1759689060083,-500.0,0.00017808,2]
[389511464,1759689060094,-4527.15,0.00017808,2]
[389511465,1759689060103,-762.6,0.00017808,2]
[389511466,1759689060112,-500.0,0.00017808,2]
[389511467,1759689060121,-500.0,0.00017808,2]
[389511468,1759689060131,-675.38,0.00017808,2]
[389511469,1759689060139,-500.0,0.00017808,2]
[389511470,1759689060148,-1616.68,0.00017808,2]
[389511471,1759689060303,-500.0,0.00017808,2]
[389511472,1759689060313,-500.0,0.00017808,2]
[389511473,1759689060323,-2024.41,0.00017808,2]
[389511474,1759689060332,-500.0,0.00017808,2]
[389511475,1759689060341,-523.76,0.00017808,2]
[389511476,1759689060354,-500.0,0.00017808,2]
[389511477,1759689060365,-721.64,0.00017808,2]
[389511478,1759689060374,-500.0,0.00017808,2]
[389511479,1759689060384,-511.05,0.00017808,2]
[389511480,1759689060395,-891.94,0.00017808,2]
[389511481,1759689060405,-1736.69,0.00017808,2]
[389511482,1759689060415,-151.0,0.00017808,2]
[389511483,1759689060424,-622.89706521,0.00017808,2]
[389511484,1759689060436,-500.0,0.00017808,2]
[389511485,1759689060446,-681.25,0.00017808,2]
[389511486,1759689060455,-772.36,0.00017808,2]
[389511487,1759689060464,-2634.38,0.00017808,2]
[389511488,1759689060473,-6557.05,0.00017808,2]
[389511489,1759689060483,-1112.79,0.00017808,2]
[389511490,1759689060499,-2126.8,0.00017808,2]
[389511491,1759689060511,-500.0,0.00017808,2]
[389511492,1759689060520,-367.52768597,0.00017808,2]
[389511493,1759689060530,-2286.45,0.00017808,2]
[389511494,1759689060540,-2130.5,0.00017808,2]
[389511495,1759689060549,-802.42,0.00017808,2]
[389511496,1759689060559,-6687.93,0.00017808,2]
[389511497,1759689060568,-1079.59,0.00017808,2]
[389511498,1759689060578,-500.0,0.00017808,2]
[389511499,1759689060588,-168.0,0.00017834,2]
[389511500,1759689060598,-198.51023739,0.00017878,2]
[389511501,1759689060609,-20006.03981059,0.00017878,2]
[389511502,1759689060620,-1680.0,0.00017952,2]
[389511503,1759689060629,-151.0,0.00017962,2]
[389511504,1759689060639,-151.0,0.00017962,2]
[389511505,1759689060650,-151.0,0.00017962,2]
[389511506,1759689060661,-244.668264,0.00017962,2]
[389511507,1759689060672,-1000.0,0.00017962,2]
[389511508,1759689060682,-1000.0,0.00017962,2]
[389511509,1759689060692,-420.0,0.00017963,2]
[389511510,1759689060702,-1000.0,0.00017987,2]
[389511511,1759689060713,-116621.09222936,0.00018,2]
[389511512,1759689060724,-5014.0,0.00018,2]
[389511513,1759689060734,-21395.83294621,0.00018,2]
[389511514,1759689060743,-134242.40335665,0.00018,2]
[389511515,1759689060752,-396.0,0.00018027,2]
[389511516,1759689060762,-1680.0,0.00018053,2]
[389511517,1759689060771,-1000.0,0.00018058,2]
[389511518,1759689060780,-1000.0,0.00018058,2]
[389511519,1759689060789,-500.0,0.00018058,2]
[389511520,1759689060799,-1000.0,0.00018058,2]
[389511521,1759689060810,-1005.25522251,0.00018058,2]
[389511522,1759689060821,-1000.0,0.00018058,2]
[389511523,1759689060830,-1000.0,0.00018058,2]
[389511524,1759689060839,-1000.0,0.00018058,2]
[389511525,1759689060849,-1000.0,0.00018058,2]
[389511526,1759689060858,-1000.0,0.00018058,2]
[389511527,1759689060868,-500.0,0.00018068,2]
[389511528,1759689060878,-1500.0,0.00018068,2]
[389511529,1759689060886,-1500.0,0.00018068,2]
[389511530,1759689060896,-1500.0,0.00018068,2]
[389511531,1759689060905,-1500.0,0.00018068,2]
[389511532,1759689060914,-1003.87086213,0.00018068,2]
[389511533,1759689060923,-1500.0,0.00018068,2]
[389511534,1759689060933,-1500.0,0.00018068,2]
[389511535,1759689060942,-1500.0,0.00018068,2]
[389511536,1759689060952,-1500.0,0.00018068,2]
[389511537,1759689060961,-1415.27919581,0.00018068,2]
[389511538,1759689060970,-1500.0,0.00018068,2]
[389511539,1759689060980,-500.0,0.00018082,2]
[389511540,1759689060989,-357.30752289,0.00018082,2]
[389511541,1759689060999,-608.87939068,0.00018082,2]
[389511542,1759689061008,-500.0,0.00018082,2]
[389511543,1759689061017,-188.66048517,0.00018082,2]
[389511544,1759689061026,-1732.0,0.00018082,2]
[389511545,1759689061036,-500.0,0.00018082,2]
[389511546,1759689061046,-500.0,0.00018082,2]
[389511547,1759689061056,-500.0,0.00018082,2]
[389511548,1759689061066,-1293.03,0.00018082,2]
[389511549,1759689061076,-500.0,0.00018082,2]
[389511550,1759689061085,-151.0,0.00018082,2]
[389511551,1759689061097,-151.0,0.00018082,2]
[389511552,1759689061106,-500.0,0.00018082,2]
[389511553,1759689061118,-500.0,0.00018082,2]
[389511554,1759689061128,-500.0,0.00018082,2]
[389511555,1759689061139,-349.48350619,0.00018082,2]
[389511556,1759689061150,-363.92527553,0.00018082,2]
[389511557,1759689061160,-555.18,0.00018082,2]
[389511558,1759689061170,-500.0,0.00018082,2]
[389511559,1759689061180,-500.0,0.00018082,2]
[389511560,1759689061190,-296.68017267,0.00018082,2]
[389511561,1759689061199,-500.0,0.00018082,2]
[389511562,1759689061209,-500.0,0.00018082,2]
[389511563,1759689061219,-595.33,0.00018082,2]
[389511564,1759689061228,-151.0,0.00018082,2]
[389511565,1759689061238,-500.0,0.00018082,2]
[389511566,1759689061247,-500.0,0.00018082,2]
[389511567,1759689061257,-1376.15,0.00018082,2]
[389511568,1759689061266,-642.37,0.00018082,2]
[389511569,1759689061277,-956.68,0.00018082,2]
[389511570,1759689061287,-618.68571348,0.00018082,2]
[389511571,1759689061296,-500.0,0.00018082,2]
[389511572,1759689061306,-568.39,0.00018082,2]
[389511573,1759689061315,-500.0,0.00018082,2]
[389511574,1759689061325,-500.0,0.00018082,2]
[389511575,1759689061334,-698.89,0.00018082,2]
[389511576,1759689061343,-500.0,0.00018082,2]
[389511577,1759689061352,-500.0,0.00018082,2]
[389511578,1759689061362,-500.0,0.00018082,2]
[389511579,1759689061372,-2265.52,0.00018082,2]
[389511580,1759689061381,-643.01,0.00018082,2]
[389511581,1759689061390,-500.0,0.00018082,2]
[389511582,1759689061399,-500.0,0.00018082,2]
[389511583,1759689061409,-1393.99,0.00018082,2]
[389511584,1759689061418,-500.05,0.00018082,2]
[389511585,1759689061427,-1317.15,0.00018082,2]
[389511586,1759689061437,-500.0,0.00018082,2]
[389511587,1759689061446,-763.35,0.00018082,2]
[389511588,1759689061455,-612.56259107,0.00018082,2]
[389511589,1759689061465,-500.0,0.00018082,2]
[389511590,1759689061474,-546.92,0.00018082,2]
[389511591,1759689061484,-500.0,0.00018082,2]
[389511592,1759689061493,-500.0,0.00018082,2]
[389511593,1759689061502,-675.29,0.00018082,2]
[389511594,1759689061511,-852.17,0.00018082,2]
[389511595,1759689061520,-500.0,0.00018082,2]
[389511596,1759689061530,-2432.63,0.00018082,2]
[389511597,1759689061539,-809.72,0.00018082,2]
[389511598,1759689061548,-1268.73,0.00018082,2]
[389511599,1759689061557,-826.51,0.00018082,2]
[389511600,1759689061566,-824.29,0.00018082,2]
[389511601,1759689061575,-974.64,0.00018082,2]
[389511602,1759689061585,-983.67,0.00018082,2]
[389511603,1759689061595,-500.0,0.00018082,2]
[389511604,1759689061604,-533.34,0.00018082,2]
[389511605,1759689061614,-500.0,0.00018082,2]
[389511606,1759689061623,-709.8,0.00018082,2]
[389511607,1759689061632,-1377.69,0.00018082,2]
[389511608,1759689061641,-500.0,0.00018082,2]
[389511609,1759689061650,-500.0,0.00018082,2]
[389511610,1759689061659,-500.0,0.00018082,2]
[389511611,1759689061668,-151.0,0.00018082,2]
[389511612,1759689061677,-500.0,0.00018082,2]
[389511613,1759689061687,-500.0,0.00018082,2]
[389511614,1759689061697,-500.0,0.00018082,2]
[389511615,1759689061706,-500.0,0.00018082,2]
[389511616,1759689061716,-284.09574521,0.00018082,2]
[389511617,1759689061725,-500.0,0.00018082,2]
[389511618,1759689061735,-581.49,0.00018082,2]
[389511619,1759689061744,-542.65,0.00018082,2]
[389511620,1759689061752,-151.0,0.00018082,2]
[389511621,1759689061762,-500.0,0.00018082,2]
[389511622,1759689061771,-224.658012,0.00018082,2]
[389511623,1759689061780,-2208.57,0.00018082,2]
[389511624,1759689061790,-500.0,0.00018082,2]
[389511625,1759689061799,-500.0,0.00018082,2]
[389511626,1759689061808,-543.1,0.00018082,2]
[389511627,1759689061818,-500.0,0.00018082,2]
[389511628,1759689061828,-151.0,0.00018082,2]
[389511629,1759689061837,-500.0,0.00018082,2]
[389511630,1759689061847,-832.87,0.00018082,2]
[389511631,1759689061856,-1123.52,0.00018082,2]
[389511632,1759689061866,-585.0,0.00018082,2]
[389511633,1759689061876,-778.06,0.00018082,2]
[389511634,1759689061885,-151.0,0.00018082,2]
[389511635,1759689061897,-500.0,0.00018082,2]
[389511636,1759689061907,-539.79,0.00018082,2]
[389511637,1759689061917,-585.63,0.00018082,2]
[389511638,1759689061927,-695.12,0.00018082,2]
[389511639,1759689061936,-879.04,0.00018082,2]
[389511640,1759689061945,-163.188218,0.00018082,2]
[389511641,1759689061955,-944.64,0.00018082,2]
[389511642,1759689061964,-1951.78,0.00018082,2]
[389511643,1759689061973,-500.0,0.00018082,2]
[389511644,1759689061982,-1643.6,0.00018082,2]
[389511645,1759689061992,-500.0,0.00018082,2]
[389511646,1759689062001,-500.0,0.00018082,2]